bitfinex-derivatives/quotes_SOLF0:USTF0_20251219
["timestamp","ask_amount","ask_price","bid_price","bid_amount"]
[1766127939165,0.00253265,124.25,124.21,116.05453424]
[1766127939364,0.00253265,124.25,124.22,3.27]
[1766127939864,0.00253265,124.25,124.21,0.00193424]
[1766127943466,0.00253265,124.25,124.21,3.27193424]
[1766127946976,126.48753904,124.38,124.25,3.27]
[1766127946977,116.53973781,124.36,124.25,3.27]
[1766127947171,112.6581,124.35,124.25,3.27]
[1766127947469,3.89203781,124.34,124.25,3.27]
[1766127947673,47.56,124.35,124.25,3.27]
[1766127947873,120.12844269,124.4,124.29,0.05113979]
[1766127948072,120.12844269,124.4,124.27,3.27]
[1766127948073,47.56,124.36,124.27,3.27]
[1766127948273,47.56,124.36,124.27,10.5164]
[1766127948474,3.89203781,124.37,124.27,10.5164]
[1766127948669,51.45203781,124.37,124.27,10.5164]
[1766127948862,0.05943281,124.33,124.31,0.05247882]
[1766127949375,0.05943281,124.33,124.31,0.00247882]
[1766127950275,0.05943281,124.33,124.27,3.27]
[1766127950472,3.89203781,124.38,124.27,3.27]
[1766127950682,51.45203781,124.38,124.29,3.27]
[1766127951466,0.05491613,124.35,124.29,3.27]
[1766127951672,0.05491613,124.35,124.32,0.06130458]
[1766127951870,0.00491613,124.35,124.32,3.33130458]
[1766127952070,0.00491613,124.35,124.34,3.27]
[1766127952276,24.69283216,124.41,124.34,3.27]
[1766127952583,24.69283216,124.41,124.35,3.27]
[1766127952782,3.89203781,124.43,124.35,3.27]
[1766127953076,7.2372,124.44,124.35,3.27]
[1766127953282,112.5579,124.46,124.38,3.32416938]
[1766127953466,3.89203781,124.44,124.35,50.81]
[1766127953765,3.89203781,124.42,124.33,47.54]
[1766127953966,3.89203781,124.42,124.33,50.81]
[1766127954279,112.5885,124.43,124.3,58.055]
[1766127954476,0.05860111,124.39,124.31,3.27]
[1766127954774,3.89203781,124.4,124.31,3.27]
[1766127955273,116.50653781,124.4,124.28,7.16203781]
[1766127955477,0.05458852,124.35,124.33,0.00098623]
[1766127955676,112.6145,124.4,124.28,3.27]
[1766127956075,119.8541,124.4,124.28,3.27]
[1766127956273,112.6072,124.41,124.29,3.27]
[1766127956482,160.1472,124.41,124.29,3.27]
[1766127956684,0.05960262,124.36,124.29,3.27]
[1766127957577,0.05960262,124.36,124.31,0.05780059]
[1766127962881,0.05960262,124.36,124.31,3.32780059]
[1766127963580,47.52,124.42,124.31,3.32780059]
[1766127963785,47.52,124.42,124.32,3.24]
[1766127964582,0.06069208,124.38,124.36,0.05221671]
[1766127964778,0.06069208,124.38,124.32,3.24]
[1766127964985,0.06069208,124.38,124.29,3.29]
[1766127965177,47.52,124.4,124.29,3.29]
[1766127965380,54.7597,124.4,124.29,3.29]
[1766127965880,47.52,124.41,124.33,0.06090676]
[1766127966082,47.52,124.41,124.32,3.29]
[1766127966977,0.05475419,124.38,124.35,0.00090116]
[1766127969689,0.00475419,124.38,124.35,3.29090116]
[1766127970180,0.00475419,124.38,124.35,115.94600116]
[1766127970380,0.00475419,124.38,124.36,3.29]
[1766127970579,424.59608808,124.49,124.37,3.29]
[1766127970580,47.52,124.47,124.37,3.29]
[1766127971191,47.52,124.47,124.39,3.29]
[1766127971589,0.05167664,124.44,124.42,0.0569141]
[1766127972186,0.00167664,124.44,124.42,0.0569141]
[1766127972493,0.00167664,124.44,124.42,3.3469141]
[1766127973494,0.00167664,124.44,124.43,3.29]
[1766127974497,0.00167664,124.44,124.43,4.89]
[1766127975897,0.00167664,124.44,124.43,3.29]
[1766127976398,0.00167664,124.44,124.42,50.8469141]
[1766127976589,0.00167664,124.44,124.43,3.29]
[1766127977294,0.00167664,124.44,124.42,47.5569141]
[1766127978598,0.00167664,124.44,124.42,50.8469141]
[1766127978785,3.87871689,124.52,124.43,3.29]
[1766127979188,3.87871689,124.52,124.43,123.1102]
[1766127979388,3.87871689,124.52,124.44,3.29]
[1766127979795,0.05562326,124.49,124.47,0.05869707]
[1766127980196,0.05562326,124.49,124.41,3.29]
[1766127980499,112.4803,124.55,124.41,3.29]
[1766127980500,3.87871689,124.5,124.41,3.29]
[1766127980793,3.60354842,124.56,124.45,115.8551]
[1766127980997,2.20514373,124.56,124.47,3.29]
[1766127981199,0.05336164,124.53,124.5,0.05165586]
[1766127981603,0.05336164,124.53,124.5,0.00165586]
[1766127982385,0.00336164,124.53,124.5,0.00165586]
[1766127987307,5.5059763,124.57,124.5,0.00165586]
[1766127987890,5.5059763,124.57,124.52,119.732]
[1766127987891,7.63e-05,124.57,124.52,119.732]
[1766127988200,7.63e-05,124.57,124.51,159.9697]
[1766127988391,0.05714799,124.56,124.53,0.05148196]
[1766127989595,7.63e-05,124.57,124.53,0.05148196]
[1766127990807,0.05108701,124.56,124.53,0.05148196]
[1766127994703,7.63e-05,124.57,124.53,0.05148196]
[1766127995701,0.05250918,124.56,124.53,0.05148196]
[1766127998102,0.05250918,124.56,124.53,112.54438196]
[1766127998300,7.63e-05,124.57,124.53,119.77568196]
[1766127998610,47.42,124.65,124.54,159.9242]
[1766127998804,47.42,124.65,124.54,47.44]
[1766127999108,47.42,124.65,124.5,112.52]
[1766127999109,166.44099155,124.65,124.5,112.52]
[1766127999298,0.05213172,124.59,124.56,0.05365044]
[1766127999498,119.6304,124.63,124.52,47.44]
[1766127999702,0.05306136,124.57,124.54,0.05432113]
[1766127999916,0.05300575,124.57,124.54,0.05570723]
[1766128000594,0.05300575,124.57,124.48,47.44]
[1766128000796,112.4592,124.57,124.43,6.63369155]
[1766128001104,184.0592,124.57,124.43,47.44]
[1766128001504,7.2305,124.56,124.43,47.44]
[1766128001710,0.05139694,124.51,124.48,0.06126019]
[1766128002013,0.05139694,124.51,124.48,0.05197488]
[1766128004511,112.4247,124.61,124.48,0.05197488]
[1766128004806,47.42,124.6,124.47,6.63369155]
[1766128005004,54.6482,124.6,124.47,112.5463]
[1766128005208,119.6608,124.6,124.48,47.44]
[1766128005615,0.06137469,124.55,124.53,0.05152527]
[1766128005812,0.06184578,124.55,124.53,0.05152527]
[1766128009716,0.06184578,124.55,124.48,47.44]
[1766128010416,0.06184578,124.55,124.49,6.63369155]
[1766128010605,0.06184578,124.55,124.51,0.0539674]
[1766128011412,159.8356,124.62,124.51,0.0539674]
[1766128011613,54.6465,124.62,124.52,7.58984682]
[1766128011816,54.6465,124.62,124.53,7.58984682]
[1766128012017,54.6465,124.62,124.54,7.58984682]
[1766128012217,47.42,124.62,124.55,7.58984682]
[1766128012418,0.0569629,124.6,124.57,0.05392673]
[1766128013114,0.0569629,124.6,124.58,7.59191405]
[1766128013312,0.0569629,124.6,124.59,7.59752934]
[1766128014921,7.2232,124.68,124.59,7.59752934]
[1766128015214,7.2232,124.68,124.6,7.59752934]
[1766128015414,7.2232,124.68,124.61,7.59752934]
[1766128015608,7.2232,124.68,124.55,119.10799155]
[1766128015809,0.0574753,124.63,124.6,0.05889731]
[1766128016019,0.0574753,124.63,124.61,7.60651318]
[1766128016316,0.0574753,124.63,124.6,0.05405459]
[1766128016504,0.0574753,124.63,124.61,7.60764233]
[1766128016710,0.0574753,124.63,124.6,0.05405459]
[1766128017023,0.0574753,124.63,124.61,7.60761245]
[1766128017209,0.0574753,124.63,124.6,0.05405459]
[1766128017517,0.0574753,124.63,124.61,7.60924654]
[1766128017813,0.0574753,124.63,124.6,0.05405459]
[1766128018004,0.0574753,124.63,124.61,7.60927895]
[1766128018210,0.0574753,124.63,124.6,0.05405459]
[1766128018417,0.0574753,124.63,124.61,7.61010336]
[1766128018616,0.0574753,124.63,124.6,0.05405459]
[1766128018818,0.0574753,124.63,124.61,7.60711012]
[1766128019018,0.0574753,124.63,124.62,7.60711012]
[1766128019221,318.13083793,124.77,124.62,127.24531012]
[1766128019519,112.2788,124.77,124.63,7.60711012]
[1766128019720,47.4,124.76,124.64,7.60711012]
[1766128019919,47.4,124.76,124.65,7.60711012]
[1766128020121,0.05729653,124.72,124.69,0.05387656]
[1766128022522,0.05729653,124.72,124.61,47.42]
[1766128022819,112.3155,124.73,124.61,47.42]
[1766128023017,112.3155,124.73,124.57,112.4542]
[1766128023018,112.3342,124.71,124.57,112.4542]
[1766128023218,112.3608,124.68,124.56,54.05369155]
[1766128023520,0.053989,124.63,124.61,0.06137479]
[1766128023712,0.05418587,124.63,124.61,0.06137479]
[1766128024314,118.95509155,124.73,124.61,0.06137479]
[1766128024520,112.3223,124.72,124.59,119.07079155]
[1766128024715,119.5821,124.68,124.55,6.63369155]
[1766128024922,159.739,124.68,124.55,119.10689155]
[1766128025108,112.3789,124.66,124.54,54.03369155]
[1766128025313,0.05388268,124.61,124.59,0.05324761]
[1766128025611,0.05812193,124.61,124.59,0.05324761]
[1766128026621,159.7409,124.68,124.59,0.05324761]
[1766128026819,47.38,124.68,124.56,119.6929]
[1766128027320,47.38,124.68,124.57,112.4532]
[1766128027518,0.05092608,124.64,124.61,0.05068462]
[1766128028411,0.00092608,124.64,124.61,0.05068462]
[1766128029222,0.00092608,124.64,124.61,0.00068462]
[1766128034023,0.00092608,124.64,124.61,3.36068462]
[1766128034326,0.00092608,124.64,124.62,10.86018959]
[1766128034524,0.00092608,124.64,124.63,7.50018959]
[1766128034824,0.00092608,124.64,124.61,0.00068462]
[1766128038429,0.00092608,124.64,124.62,7.49274357]
[1766128038629,0.00092608,124.64,124.61,3.36068462]
[1766128038932,0.00092608,124.64,124.62,7.49234205]
[1766128039228,0.00092608,124.64,124.61,3.36068462]
[1766128039435,0.00092608,124.64,124.62,7.49140465]
[1766128039621,0.00092608,124.64,124.61,3.36068462]
[1766128039821,0.00092608,124.64,124.63,3.36]
[1766128040026,47.38,124.74,124.63,10.84913865]
[1766128040221,126.15669155,124.75,124.64,10.84913865]
[1766128040423,112.2604,124.79,124.66,3.36]
[1766128040728,47.38,124.78,124.68,3.36]
[1766128041124,0.05111642,124.74,124.72,0.0569897]
[1766128041322,0.05111642,124.74,124.68,3.36]
[1766128042335,0.05111642,124.74,124.7,0.05205599]
[1766128043141,0.00111642,124.74,124.7,3.41205599]
[1766128043331,0.00111642,124.74,124.72,3.36]
[1766128044437,0.00111642,124.74,124.7,0.05205599]
[1766128045024,0.00111642,124.74,124.7,3.41205599]
[1766128047533,0.00111642,124.74,124.72,3.36]
[1766128047735,119.4403,124.83,124.72,3.36]
[1766128048638,0.05309802,124.79,124.76,0.05189937]
[1766128048830,0.00309802,124.79,124.76,0.05189937]
[1766128049026,0.00309802,124.79,124.76,3.41189937]
[1766128050939,166.7533,124.88,124.76,3.41189937]
[1766128051134,5.45835324,124.89,124.78,3.36]
[1766128051436,117.63075324,124.89,124.78,3.36]
[1766128052033,0.05341307,124.85,124.82,0.05768041]
[1766128055237,0.05341307,124.85,124.76,3.28]
[1766128055436,164.97105324,124.89,124.77,10.6045144]
[1766128055629,52.79835324,124.89,124.79,3.28]
[1766128055830,5.45835324,124.89,124.79,3.28]
[1766128056041,117.62935324,124.89,124.76,3.28]
[1766128056228,0.05389604,124.84,124.81,0.05212939]
[1766128056431,0.05389604,124.84,124.81,0.05659154]
[1766128056631,0.05389604,124.84,124.77,3.28]
[1766128057745,0.05389604,124.84,124.79,0.05753787]
[1766128058633,0.05389604,124.84,124.8,10.60345188]
[1766128058838,0.05389604,124.84,124.81,7.32373]
[1766128059033,0.05389604,124.84,124.8,3.28]
[1766128059842,0.05389604,124.84,124.79,0.05753787]
[1766128060737,5.45835324,124.89,124.79,3.33753787]
[1766128060930,5.45835324,124.89,124.81,3.28]
[1766128061131,3.39,124.92,124.84,3.28]
[1766128061334,3.39,124.95,124.85,7.31161956]
[1766128061645,3.39,124.95,124.84,3.28]
[1766128061646,3.39,124.94,124.84,3.28]
[1766128061846,0.05283196,124.9,124.88,0.05593316]
[1766128062144,3.39,124.94,124.88,0.05593316]
[1766128063251,0.0554099,124.92,124.88,0.05593316]
[1766128063433,3.39,124.97,124.89,0.05474861]
[1766128063633,3.39,124.97,124.89,3.28]
[1766128063840,109.39,125.0,124.9,3.28]
[1766128064039,109.39,125.0,124.92,3.28]
[1766128064646,0.05597352,124.97,124.95,0.05526965]
[1766128064850,0.05597352,124.97,124.92,3.28]
[1766128064851,0.05597352,124.97,124.9,10.74433291]
[1766128065040,0.05597352,124.97,124.91,7.28530405]
[1766128065242,3.39,124.98,124.89,3.28]
[1766128065552,3.39,124.97,124.89,3.28]
[1766128065940,0.0554281,124.94,124.92,0.05182694]
[1766128066440,109.39,125.0,124.92,0.05182694]
[1766128066644,109.39,125.0,124.91,3.28]
[1766128066645,106.0,125.0,124.91,50.6]
[1766128066940,106.0,125.0,124.92,10.54983144]
[1766128067146,3.39,124.95,124.86,3.28]
[1766128067448,0.05682877,124.92,124.84,3.28]
[1766128067657,3.39,124.94,124.85,7.27735444]
[1766128067844,112.1457,124.92,124.82,47.32]
[1766128068046,3.39,124.9,124.82,47.32]
[1766128068548,0.05351742,124.87,124.85,0.05215043]
[1766128069842,3.39,124.9,124.85,0.05215043]
[1766128070845,3.4451109,124.89,124.81,3.28]
[1766128071150,3.39,124.89,124.81,3.28]
[1766128071345,3.39,124.89,124.82,7.46181175]
[1766128071545,3.39,124.89,124.81,3.28]
[1766128071755,47.3,124.91,124.82,10.74102052]
[1766128071946,0.05456442,124.88,124.85,0.05404885]
[1766128076450,0.05456442,124.88,124.85,0.00404885]
[1766128076756,3.44456442,124.88,124.85,0.00404885]
[1766128076946,3.39,124.87,124.85,0.00404885]
[1766128077258,3.39,124.86,124.85,0.00404885]
[1766128077443,52.29,124.86,124.85,0.00404885]
[1766128078150,52.29,124.86,124.74,47.32]
[1766128078151,115.6226,124.82,124.74,47.32]
[1766128078339,115.6226,124.82,124.75,7.51039304]
[1766128078543,10.6053,124.82,124.76,7.51039304]
[1766128078754,10.6053,124.82,124.72,3.28]
[1766128078962,0.05239476,124.78,124.76,0.05346191]
[1766128079255,0.00239476,124.78,124.77,7.51879804]
[1766128080049,0.00239476,124.78,124.77,9.804e-05]
[1766128080648,0.00239476,124.78,124.7,3.28]
[1766128080848,3.39,124.8,124.7,3.28]
[1766128081242,3.39,124.75,124.64,3.28]
[1766128081448,3.39,124.75,124.61,14.02433291]
[1766128081449,3.39,124.72,124.61,14.02433291]
[1766128081654,3.39,124.72,124.65,0.06115841]
[1766128081844,0.0035055,124.68,124.65,3.34115841]
[1766128082043,47.3,124.74,124.65,3.28]
[1766128082354,3.39,124.77,124.66,3.28]
[1766128082554,3.39,124.77,124.68,3.28]
[1766128083156,3.4486888,124.74,124.71,0.00182237]
[1766128083353,47.3,124.73,124.63,3.28]
[1766128083555,163.1358,124.73,124.63,3.28]
[1766128083756,3.52,124.69,124.6,3.34]
[1766128084050,115.8712,124.69,124.6,3.34]
[1766128084254,0.05414997,124.66,124.63,0.05684193]
[1766128084852,3.52,124.69,124.63,0.05684193]
[1766128085057,115.7358,124.73,124.63,0.05684193]
[1766128085258,3.42,124.69,124.61,3.41]
[1766128085445,115.7816,124.68,124.58,14.15433291]
[1766128085653,115.7816,124.68,124.58,3.41]
[1766128085859,50.74,124.67,124.58,3.41]
[1766128086159,3.47630158,124.64,124.55,3.41]
[1766128086360,3.42,124.64,124.55,3.41]
[1766128087057,50.74,124.67,124.58,3.46182266]
[1766128087262,50.74,124.67,124.58,3.41]
[1766128087562,3.42,124.65,124.55,3.41]
[1766128088161,0.05891623,124.61,124.59,0.05876785]
[1766128088657,0.05891623,124.61,124.52,3.41]
[1766128088957,3.42,124.62,124.52,3.41]
[1766128089655,0.06081802,124.58,124.56,0.06077772]
[1766128090167,3.42,124.62,124.56,0.06077772]
[1766128090353,3.42,124.67,124.56,3.47077772]
[1766128090550,47.34,124.66,124.56,115.8734]
[1766128090752,3.42,124.67,124.57,115.8653]
[1766128090950,3.42,124.74,124.63,3.41]
[1766128091147,50.76,124.72,124.63,3.41]
[1766128091548,3.42,124.72,124.63,3.41]
[1766128091760,3.42,124.75,124.64,115.8008]
[1766128091955,0.05743633,124.71,124.68,0.05452261]
[1766128092760,0.05743633,124.71,124.68,0.00452261]
[1766128093263,3.42,124.78,124.69,3.41]
[1766128093561,3.42,124.78,124.7,7.40430214]
[1766128093752,3.42,124.78,124.71,7.40430214]
[1766128093949,3.42,124.78,124.69,126.49843291]
[1766128094155,3.42,124.78,124.7,7.39992922]
[1766128094357,3.42,124.78,124.72,0.05386896]
[1766128094358,0.05166513,124.75,124.72,0.05386896]
[1766128095659,0.05166513,124.75,124.72,0.00386896]
[1766128096168,4.76560699,124.86,124.75,115.7029]
[1766128096355,4.76560699,124.86,124.75,10.6287]
[1766128096556,4.76560699,124.86,124.76,7.38290439]
[1766128096757,3.42,124.85,124.75,3.41]
[1766128097052,3.42,124.85,124.79,0.05977592]
[1766128097053,3.42,124.84,124.79,0.05977592]
[1766128097259,0.05609188,124.81,124.75,3.41]
[1766128097667,0.05609188,124.81,124.72,14.15433291]
[1766128097857,3.42,124.82,124.72,3.41]
[1766128098263,0.05344871,124.78,124.76,0.05815548]
[1766128099159,0.05344871,124.78,124.72,3.41]
[1766128100266,0.05344871,124.78,124.74,0.05861329]
[1766128100467,0.05812496,124.77,124.74,0.05861329]
[1766128100768,0.05812496,124.77,124.74,0.05839797]
[1766128101267,3.42,124.84,124.74,3.46839797]
[1766128101453,3.42,124.87,124.75,3.41]
[1766128102268,0.05497669,124.82,124.79,0.05641708]
[1766128105967,0.00497669,124.82,124.79,0.05641708]
[1766128107167,0.00497669,124.82,124.79,3.46641708]
[1766128107464,0.00497669,124.82,124.79,0.05641708]
[1766128108367,0.00497669,124.82,124.79,3.46641708]
[1766128109376,3.42,124.88,124.79,3.46641708]
[1766128109560,3.42,124.88,124.79,3.41]
[1766128109767,3.42,124.92,124.82,3.41]
[1766128110270,7.2097,124.91,124.82,3.41]
[1766128110465,0.05957555,124.88,124.85,0.05804118]
[1766128113275,170.0817,124.94,124.85,0.05804118]
[1766128113475,50.74,124.94,124.84,3.41]
[1766128113679,47.32,124.94,124.86,3.41]
[1766128114277,0.05099692,124.91,124.89,0.05898986]
[1766128115175,0.00099692,124.91,124.89,0.05898986]
[1766128117679,0.00099692,124.91,124.83,3.34]
[1766128117978,3.46,124.93,124.83,3.34]
[1766128118284,3.46,124.91,124.81,50.66]
[1766128118583,0.05823971,124.87,124.85,0.05126601]
[1766128118781,3.46,124.91,124.85,0.05126601]
[1766128118986,50.76,124.94,124.85,0.05126601]
[1766128119191,50.76,124.94,124.83,3.34]
[1766128119485,50.76,124.94,124.84,115.5525]
[1766128119683,3.46,124.97,124.87,112.1872]
[1766128119981,109.46,125.0,124.93,112.1323]
[1766128120200,106.0,125.0,124.92,115.4806]
[1766128120381,106.0,125.0,124.92,122.6895]
[1766128120685,93.5082,125.0,124.94,112.1198]
[1766128120983,0.02410713,124.98,124.96,0.05956657]
[1766128122782,0.00410713,124.98,124.96,0.05956657]
[1766128126283,0.00410713,124.98,124.92,3.34]
[1766128126882,0.00410713,124.98,124.89,3.34]
[1766128127084,104.1728,125.0,124.9,3.34]
[1766128127387,0.05521018,124.96,124.94,0.05339283]
[1766128127790,0.05521018,124.96,124.94,0.00339283]
[1766128128487,0.05521018,124.96,124.9,3.34]
[1766128128883,0.05521018,124.96,124.89,7.2104]
[1766128129484,0.05521018,124.96,124.91,7.26607232]
[1766128131285,0.05521018,124.96,124.91,122.75677232]
[1766128131491,93.5082,125.0,124.92,122.6899]
[1766128131788,93.5082,125.0,124.93,3.34]
[1766128132490,0.06027932,124.98,124.95,0.05837085]
[1766128135079,89.9882,125.0,124.95,3.39837085]
[1766128135286,86.4682,125.0,124.95,3.39837085]
[1766128137487,86.4682,125.0,124.95,0.05837085]
[1766128137693,3.46,124.99,124.89,2.27]
[1766128137879,3.46,124.99,124.9,49.61]
[1766128138593,0.0520042,124.96,124.93,0.06128366]
[1766128139596,0.0020042,124.96,124.93,0.06128366]
[1766128141094,3.4620042,124.96,124.87,2.28]
[1766128141292,3.46,124.93,124.83,2.34]
[1766128141487,3.46,124.9,124.8,2.34]
[1766128141697,3.46,124.93,124.82,2.34]
[1766128141997,0.05348756,124.89,124.86,0.05571773]
[1766128143497,5.15348756,124.89,124.76,114.682]
[1766128143699,3.5,124.87,124.76,49.68]
[1766128144191,3.5,124.87,124.77,2.4]
[1766128144394,112.154,124.91,124.81,0.05781624]
[1766128144395,0.00467614,124.83,124.81,0.05781624]
[1766128144594,3.41,124.9,124.81,0.05781624]
[1766128144595,119.3324,124.95,124.81,119.4563]
[1766128144798,3.41,124.93,124.82,114.5775]
[1766128145304,3.41,124.93,124.84,114.5616]
[1766128145503,0.05330258,124.9,124.87,0.05854896]
[1766128149900,47.26,124.94,124.87,2.35854896]
[1766128150094,3.41,124.97,124.87,2.35854896]
[1766128150294,3.41,124.97,124.87,2.3]
[1766128150993,0.02364669,124.93,124.91,0.05295173]
[1766128153907,3.41,124.92,124.83,2.3]
[1766128154905,0.00473662,124.89,124.86,2.30927989]
[1766128155099,50.69,124.96,124.86,2.25]
[1766128155402,3.41,124.96,124.86,2.25]
[1766128155596,47.28,124.97,124.87,2.25]
[1766128155801,0.02659842,124.93,124.91,0.05530215]
[1766128159205,0.02659842,124.93,124.87,2.25]
[1766128160209,0.02659842,124.93,124.89,0.06069358]
[1766128160402,0.05624493,124.92,124.89,0.06069358]
[1766128162304,3.46624493,124.92,124.84,2.31]
[1766128162511,3.41,124.92,124.84,2.31]
[1766128163411,0.05539721,124.89,124.87,0.0521644]
[1766128164007,0.05539721,124.89,124.87,0.0021644]
[1766128165215,3.41,124.95,124.87,0.0021644]
[1766128165413,3.41,124.94,124.85,2.36]
[1766128166310,0.05718053,124.91,124.88,0.06144696]
[1766128168426,3.41,124.98,124.89,2.3]
[1766128169511,0.00156407,124.95,124.92,2.35538382]
[1766128169712,86.4682,125.0,124.92,2.3]
[1766128170502,89.8782,125.0,124.92,2.3]
[1766128170707,89.8782,125.0,124.95,0.05901747]
[1766128171307,3.46875724,124.99,124.9,47.28]
[1766128171510,3.41,124.99,124.9,47.28]
[1766128172414,0.05322276,124.96,124.93,0.0519747]
[1766128174512,3.38322276,124.96,124.85,49.63]
[1766128174717,3.33,124.96,124.85,49.63]
[1766128175509,0.05792003,124.92,124.89,0.0615656]
[1766128176805,3.33,124.99,124.89,2.3515656]
[1766128177012,3.33,124.98,124.89,2.29]
[1766128177717,3.33,124.97,124.86,2.29]
[1766128177918,0.05387561,124.93,124.9,0.00210031]
[1766128178114,0.05387561,124.93,124.86,2.29]
[1766128178413,3.38387561,124.93,124.84,7.2135]
[1766128178716,3.33,124.92,124.83,2.34]
[1766128178916,0.05626206,124.89,124.86,0.05665918]
[1766128181920,3.33,124.92,124.86,0.05665918]
[1766128182910,0.05767786,124.9,124.86,0.05665918]
[1766128183120,0.05767786,124.9,124.87,0.05496135]
[1766128184723,86.4682,125.0,124.9,2.23]
[1766128185018,3.33,124.99,124.9,2.23]
[1766128185515,3.33,124.99,124.91,2.23]
[1766128185709,3.33,124.99,124.94,0.05373127]
[1766128186322,3.33,124.99,124.94,0.00373127]
[1766128186722,115.4147,124.99,124.94,0.00373127]
[1766128187017,3.33,124.96,124.88,47.28]
[1766128187322,3.33,124.96,124.83,122.935217]
[1766128187323,3.33,124.93,124.83,2.28]
[1766128188225,0.05735181,124.89,124.87,0.05067186]
[1766128188723,3.33,124.98,124.87,2.33067186]
[1766128188907,3.33,124.98,124.89,2.28]
[1766128189719,3.33,124.98,124.92,0.05581169]
[1766128190213,3.33,124.98,124.87,7.2118]
[1766128190709,3.33,124.98,124.87,119.3988]
[1766128190909,3.33,124.98,124.88,2.34]
[1766128191110,0.05607603,124.94,124.92,0.05793301]
[1766128194212,0.05607603,124.94,124.91,7.2095]
[1766128194412,3.33,124.99,124.91,7.2095]
[1766128195424,3.33,124.99,124.94,0.05983417]
[1766128195425,0.05615508,124.96,124.94,0.05983417]
[1766128198519,86.4682,125.0,124.94,0.05983417]
[1766128198720,86.4682,125.0,124.94,2.33983417]
[1766128199133,86.4682,125.0,124.94,9.54743417]
[1766128199832,86.4682,125.0,124.94,0.05983417]
[1766128201022,89.7982,125.0,124.94,0.05983417]
[1766128201223,3.33,124.99,124.94,0.05983417]
[1766128201424,86.4682,125.0,124.94,0.05983417]
[1766128201730,3.33,124.99,124.9,2.28]
[1766128201921,86.4682,125.0,124.91,2.34]
[1766128202736,0.05434153,124.97,124.94,0.05337394]
[1766128203930,3.50434153,124.97,124.94,0.00337394]
[1766128204133,0.05434153,124.97,124.94,0.00337394]
[1766128206220,3.22434153,124.97,124.94,0.00337394]
[1766128207733,52.08434153,124.97,124.94,0.00337394]
[1766128207928,3.17,124.95,124.84,2.39]
[1766128208132,3.17,124.95,124.85,2.39]
[1766128208528,3.17,124.95,124.86,2.39]
[1766128209038,0.06139051,124.92,124.89,0.05848093]
[1766128211726,3.17,124.98,124.89,2.38848093]
[1766128211925,3.17,124.98,124.89,2.33]
[1766128212333,3.17,124.98,124.89,9.5407]
[1766128212722,0.05729521,124.95,124.92,0.05794031]
[1766128213135,0.05729521,124.95,124.87,47.28]
[1766128213332,3.17,124.96,124.87,49.67]
[1766128213833,3.17,124.96,124.87,56.8816]
[1766128214036,3.17,124.95,124.84,49.67]
[1766128214230,0.05125232,124.91,124.88,0.05977488]
[1766128216331,3.17,124.9,124.8,2.39]
[1766128217330,0.05511751,124.86,124.84,0.05741624]
[1766128218133,3.17,124.93,124.84,3.98741624]
[1766128218439,3.17,124.95,124.85,2.33]
[1766128218836,10.3771,124.95,124.85,2.33]
[1766128219036,0.0518764,124.91,124.89,0.06059764]
[1766128220138,0.0518764,124.91,124.85,2.33]
[1766128220338,3.2218764,124.91,124.82,2.39]
[1766128220534,3.17,124.91,124.82,2.39]
[1766128220929,3.17,124.91,124.82,9.6039]
[1766128221238,0.05826088,124.88,124.85,0.05056322]
[1766128223026,10.3783,124.93,124.85,0.05056322]
[1766128223241,3.17,124.92,124.83,9.5534]
[1766128224134,0.05991706,124.89,124.86,0.05447143]
[1766128227038,0.05991706,124.89,124.86,0.00447143]
[1766128227245,3.22991706,124.89,124.8,2.34]
[1766128227537,3.17,124.89,124.8,2.34]
[1766128228237,0.05178278,124.86,124.83,0.05174198]
[1766128228544,3.22178278,124.86,124.77,9.6569]